[Event "Titled Tuesday Blitz January 18 2022"]
[White "Visakh N R"]
[Black "Hasangatin, Ramil"]
[WhiteFideId "25012223"]
[BlackFideId "4122160"]
[WhiteElo "2454"]
[BlackElo "2375"]
[Result "1/2-1/2"]
[Round "06"]
[TimeControl "180+1"]
[Date "2022.01.18"]
[WhiteClock "0:00:11"]
[BlackClock "0:00:24"]

1. d4 {[%clk 0:03:00]}  Nf6 {[%clk 0:02:54]} 2. Bg5 {[%clk 0:02:57]}  e6 {[%clk 0:02:53]} 3. Nd2 {[%clk 0:02:55]}  h6 {[%clk 0:02:53]} 4. Bh4 {[%clk 0:02:55]}  d5 {[%clk 0:02:53]} 5. e3 {[%clk 0:02:55]}  Be7 {[%clk 0:02:53]} 6. Bd3 {[%clk 0:02:55]}  b6 {[%clk 0:02:51]} 7. c3 {[%clk 0:02:53]}  O-O {[%clk 0:02:50]} 8. Qe2 {[%clk 0:02:52]}  a5 {[%clk 0:02:50]} 9. f4 {[%clk 0:02:49]}  Ba6 {[%clk 0:02:50]} 10. Ngf3 {[%clk 0:02:49]}  Ne4 {[%clk 0:02:44]} 11. Bxe7 {[%clk 0:02:46]}  Qxe7 {[%clk 0:02:43]} 12. Bxa6 {[%clk 0:02:46]}  Nxa6 {[%clk 0:02:39]} 13. Nxe4 {[%clk 0:02:44]}  dxe4 {[%clk 0:02:39]} 14. Nd2 {[%clk 0:02:45]}  f5 {[%clk 0:02:37]} 15. Nc4 {[%clk 0:02:44]}  Nb8 {[%clk 0:02:33]} 16. Ne5 {[%clk 0:02:42]}  Qe8 {[%clk 0:02:23]} 17. g4 {[%clk 0:02:24]}  Nc6 {[%clk 0:02:21]} 18. gxf5 {[%clk 0:02:23]}  Nxe5 {[%clk 0:02:19]} 19. fxe5 {[%clk 0:02:22]}  Rxf5 {[%clk 0:02:11]} 20. O-O-O {[%clk 0:02:18]}  Qf7 {[%clk 0:02:06]} 21. Qg4 {[%clk 0:02:13]}  Rf2 {[%clk 0:01:57]} 22. Qxe4 {[%clk 0:02:11]}  Rf8 {[%clk 0:01:58]} 23. h4 {[%clk 0:01:56]}  Re2 {[%clk 0:01:57]} 24. Rhe1 {[%clk 0:01:23]}  Qf2 {[%clk 0:01:48]} 25. Rxe2 {[%clk 0:01:23]}  Qxe2 {[%clk 0:01:48]} 26. Qd3 {[%clk 0:01:04]}  Rf2 {[%clk 0:01:41]} 27. Qxe2 {[%clk 0:00:58]}  Rxe2 {[%clk 0:01:42]} 28. Rd3 {[%clk 0:00:45]}  b5 {[%clk 0:01:34]} 29. d5 {[%clk 0:00:41]}  exd5 {[%clk 0:01:24]} 30. Rxd5 {[%clk 0:00:42]}  b4 {[%clk 0:01:24]} 31. Rxa5 {[%clk 0:00:38]}  bxc3 {[%clk 0:01:21]} 32. bxc3 {[%clk 0:00:39]}  Rxe3 {[%clk 0:01:22]} 33. Rc5 {[%clk 0:00:39]}  Kf7 {[%clk 0:01:16]} 34. Rxc7+ {[%clk 0:00:38]}  Ke6 {[%clk 0:01:16]} 35. Kb2 {[%clk 0:00:34]}  g5 {[%clk 0:00:51]} 36. hxg5 {[%clk 0:00:30]}  hxg5 {[%clk 0:00:50]} 37. a4 {[%clk 0:00:31]}  Rxe5 {[%clk 0:00:48]} 38. Kb3 {[%clk 0:00:29]}  Re1 {[%clk 0:00:41]} 39. Rc8 {[%clk 0:00:27]}  Rb1+ {[%clk 0:00:37]} 40. Kc4 {[%clk 0:00:26]}  g4 {[%clk 0:00:37]} 41. Rg8 {[%clk 0:00:24]}  Kf5 {[%clk 0:00:36]} 42. a5 {[%clk 0:00:23]}  Ra1 {[%clk 0:00:32]} 43. Kb5 {[%clk 0:00:23]}  Rb1+ {[%clk 0:00:30]} 44. Kc5 {[%clk 0:00:23]}  Ra1 {[%clk 0:00:30]} 45. Kb6 {[%clk 0:00:23]}  Rb1+ {[%clk 0:00:30]} 46. Kc6 {[%clk 0:00:22]}  Rc1 {[%clk 0:00:30]} 47. a6 {[%clk 0:00:20]}  Rxc3+ {[%clk 0:00:30]} 48. Kb6 {[%clk 0:00:20]}  Rb3+ {[%clk 0:00:30]} 49. Kc5 {[%clk 0:00:18]}  Ra3 {[%clk 0:00:30]} 50. Kb5 {[%clk 0:00:18]}  Kf4 {[%clk 0:00:27]} 51. Rf8+ {[%clk 0:00:18]}  Ke3 {[%clk 0:00:26]} 52. Re8+ {[%clk 0:00:18]}  Kf2 {[%clk 0:00:26]} 53. Rf8+ {[%clk 0:00:18]}  Ke2 {[%clk 0:00:24]} 54. Re8+ {[%clk 0:00:12]}  Kf2 {[%clk 0:00:23]} 55. Rf8+ {[%clk 0:00:13]}  Ke2 {[%clk 0:00:24]} 56. Re8+ {[%clk 0:00:11]}  Kf2 {[%clk 0:00:24]} 1/2-1/2


[Site "https://www.chess.com"]

[Event "Titled Tuesday Blitz January 18 2022"]
[White "Weishaeutel, Moritz"]
[Black "Gelman, Alexander"]
[WhiteFideId "12967300"]
[BlackFideId "4118316"]
[WhiteElo "2002"]
[BlackElo "2375"]
[Result "1-0"]
[Round "06"]
[TimeControl "180+1"]
[Date "2022.01.18"]
[WhiteClock "0:00:11"]
[BlackClock "0:00:11"]

1. e4 {[%clk 0:03:00]}  c5 {[%clk 0:02:59]} 2. b4 {[%clk 0:03:00]}  cxb4 {[%clk 0:02:57]} 3. a3 {[%clk 0:03:01]}  bxa3 {[%clk 0:02:49]} 4. d4 {[%clk 0:03:00]}  g6 {[%clk 0:02:47]} 5. Nxa3 {[%clk 0:02:59]}  Bg7 {[%clk 0:02:47]} 6. c3 {[%clk 0:02:59]}  d6 {[%clk 0:02:47]} 7. Bd3 {[%clk 0:02:59]}  Nf6 {[%clk 0:02:47]} 8. Ne2 {[%clk 0:03:00]}  O-O {[%clk 0:02:47]} 9. O-O {[%clk 0:03:00]}  Nc6 {[%clk 0:02:45]} 10. f4 {[%clk 0:03:00]}  a6 {[%clk 0:02:44]} 11. Nc2 {[%clk 0:02:51]}  Bd7 {[%clk 0:02:29]} 12. e5 {[%clk 0:02:48]}  Nd5 {[%clk 0:02:25]} 13. Be4 {[%clk 0:02:38]}  Nb6 {[%clk 0:02:11]} 14. Rb1 {[%clk 0:02:29]}  Na5 {[%clk 0:01:57]} 15. Ne3 {[%clk 0:02:24]}  Bc6 {[%clk 0:01:42]} 16. d5 {[%clk 0:02:22]}  Bb5 {[%clk 0:01:41]} 17. e6 {[%clk 0:02:13]}  f5 {[%clk 0:01:35]} 18. Bd3 {[%clk 0:02:14]}  Bxd3 {[%clk 0:01:27]} 19. Qxd3 {[%clk 0:02:14]}  Rc8 {[%clk 0:01:27]} 20. Bd2 {[%clk 0:02:05]}  Qc7 {[%clk 0:01:18]} 21. c4 {[%clk 0:01:46]}  Nbxc4 {[%clk 0:01:18]} 22. Rfc1 {[%clk 0:01:46]}  b5 {[%clk 0:01:18]} 23. Bxa5 {[%clk 0:01:32]}  Qxa5 {[%clk 0:01:19]} 24. Nxc4 {[%clk 0:01:33]}  bxc4 {[%clk 0:01:18]} 25. Rxc4 {[%clk 0:01:34]}  Rc5 {[%clk 0:00:55]} 26. Rxc5 {[%clk 0:01:27]}  Qxc5+ {[%clk 0:00:55]} 27. Kh1 {[%clk 0:01:28]}  a5 {[%clk 0:00:55]} 28. Rb5 {[%clk 0:01:18]}  Qf2 {[%clk 0:00:54]} 29. h3 {[%clk 0:01:02]}  Ra8 {[%clk 0:00:50]} 30. Qc4 {[%clk 0:00:46]}  Bf6 {[%clk 0:00:38]} 31. Qc6 {[%clk 0:00:41]}  Rf8 {[%clk 0:00:32]} 32. Ng1 {[%clk 0:00:34]}  Qxf4 {[%clk 0:00:26]} 33. Rxa5 {[%clk 0:00:30]}  Rb8 {[%clk 0:00:25]} 34. Ra8 {[%clk 0:00:17]}  Rxa8 {[%clk 0:00:25]} 35. Qxa8+ {[%clk 0:00:18]}  Kg7 {[%clk 0:00:26]} 36. Nf3 {[%clk 0:00:16]}  g5 {[%clk 0:00:24]} 37. Qe8 {[%clk 0:00:15]}  g4 {[%clk 0:00:17]} 38. Ng1 {[%clk 0:00:13]}  Be5 {[%clk 0:00:13]} 39. Qxe7+ {[%clk 0:00:13]}  Kh6 {[%clk 0:00:11]} 40. Qf8+ {[%clk 0:00:11]}  Kh5 {[%clk 0:00:11]} 41. Qf7+ {[%clk 0:00:11]}  Kh4 {[%clk 0:00:12]} 42. Qxh7+ {[%clk 0:00:11]}  Kg5 {[%clk 0:00:11]} 43. h4+ {[%clk 0:00:11]}  Kf6 {[%clk 0:00:11]} 44. Qf7# {[%clk 0:00:11]} 1-0


[Site "https://www.chess.com"]

[Event "Titled Tuesday Blitz January 18 2022"]
[White "Xiong, Jeffery"]
[Black "Weetik, Vjacheslav"]
[WhiteFideId "2047640"]
[BlackFideId "4153472"]
[WhiteElo "3027"]
[BlackElo "2767"]
[Result "1-0"]
[Round "06"]
[TimeControl "180+1"]
[Date "2022.01.18"]
[WhiteClock "0:00:59"]
[BlackClock "0:00:03"]

1. Nf3 {[%clk 0:03:00]}  Nf6 {[%clk 0:02:59]} 2. c4 {[%clk 0:02:59]}  g6 {[%clk 0:02:59]} 3. b4 {[%clk 0:02:58]}  Bg7 {[%clk 0:02:58]} 4. Bb2 {[%clk 0:02:58]}  O-O {[%clk 0:02:59]} 5. e3 {[%clk 0:02:58]}  d6 {[%clk 0:02:35]} 6. Be2 {[%clk 0:02:58]}  e5 {[%clk 0:02:35]} 7. d3 {[%clk 0:02:58]}  Ng4 {[%clk 0:02:13]} 8. Nc3 {[%clk 0:02:55]}  f5 {[%clk 0:02:12]} 9. O-O {[%clk 0:02:55]}  Be6 {[%clk 0:01:58]} 10. a4 {[%clk 0:02:46]}  Nd7 {[%clk 0:01:56]} 11. a5 {[%clk 0:02:46]}  a6 {[%clk 0:01:56]} 12. e4 {[%clk 0:02:28]}  Kh8 {[%clk 0:01:40]} 13. d4 {[%clk 0:02:20]}  Bg8 {[%clk 0:01:35]} 14. h3 {[%clk 0:02:15]}  Nh6 {[%clk 0:01:04]} 15. dxe5 {[%clk 0:02:11]}  dxe5 {[%clk 0:01:02]} 16. Qc2 {[%clk 0:02:07]}  c6 {[%clk 0:00:48]} 17. Rad1 {[%clk 0:02:06]}  Qe7 {[%clk 0:00:48]} 18. Rfe1 {[%clk 0:01:58]}  f4 {[%clk 0:00:41]} 19. c5 {[%clk 0:01:46]}  Be6 {[%clk 0:00:33]} 20. Nb1 {[%clk 0:01:46]}  Nf7 {[%clk 0:00:32]} 21. Nbd2 {[%clk 0:01:46]}  h5 {[%clk 0:00:23]} 22. Nc4 {[%clk 0:01:45]}  g5 {[%clk 0:00:21]} 23. Nh2 {[%clk 0:01:41]}  g4 {[%clk 0:00:20]} 24. hxg4 {[%clk 0:01:41]}  hxg4 {[%clk 0:00:18]} 25. Bxg4 {[%clk 0:01:42]}  Bxg4 {[%clk 0:00:11]} 26. Nxg4 {[%clk 0:01:43]}  f3 {[%clk 0:00:12]} 27. Bc1 {[%clk 0:01:30]}  Qe6 {[%clk 0:00:09]} 28. gxf3 {[%clk 0:01:29]}  Nf6 {[%clk 0:00:10]} 29. Nce3 {[%clk 0:01:07]}  Ng5 {[%clk 0:00:09]} 30. Kg2 {[%clk 0:00:59]}  Nxg4 {[%clk 0:00:09]} 31. fxg4 {[%clk 0:01:00]}  Qg6 {[%clk 0:00:04]} 32. Rh1+ {[%clk 0:00:59]}  Kg8 {[%clk 0:00:04]} 33. Nf5 {[%clk 0:00:59]}  Ne6 {[%clk 0:00:03]} 34. Ne7+ {[%clk 0:00:59]} 1-0


[Site "https://www.chess.com"]

[Event "Titled Tuesday Blitz January 18 2022"]
[White "Yeletsky, Ivan"]
[Black "Sokolovsky, Yahli"]
[WhiteFideId "24180327"]
[BlackFideId "2820242"]
[WhiteElo "2348"]
[BlackElo "1770"]
[Result "0-1"]
[Round "06"]
[TimeControl "180+1"]
[Date "2022.01.18"]
[WhiteClock "0:00:05"]
[BlackClock "0:00:05"]

1. c4 {[%clk 0:03:00]}  g6 {[%clk 0:02:29]} 2. Nc3 {[%clk 0:02:30]}  Bg7 {[%clk 0:02:30]} 3. b3 {[%clk 0:02:31]}  d6 {[%clk 0:02:29]} 4. Bb2 {[%clk 0:02:31]}  Nc6 {[%clk 0:02:30]} 5. e3 {[%clk 0:02:31]}  e5 {[%clk 0:02:30]} 6. h4 {[%clk 0:02:30]}  Nf6 {[%clk 0:02:26]} 7. Be2 {[%clk 0:02:24]}  h5 {[%clk 0:02:26]} 8. Nf3 {[%clk 0:02:22]}  Bg4 {[%clk 0:02:26]} 9. Ng5 {[%clk 0:02:22]}  Bxe2 {[%clk 0:02:25]} 10. Qxe2 {[%clk 0:02:17]}  Qe7 {[%clk 0:02:24]} 11. Nd5 {[%clk 0:02:14]}  Qd7 {[%clk 0:02:18]} 12. O-O-O {[%clk 0:01:57]}  Nxd5 {[%clk 0:02:17]} 13. cxd5 {[%clk 0:01:56]}  Ne7 {[%clk 0:02:17]} 14. e4 {[%clk 0:01:53]}  c6 {[%clk 0:02:14]} 15. d4 {[%clk 0:01:45]}  cxd5 {[%clk 0:02:09]} 16. dxe5 {[%clk 0:01:44]}  dxe5 {[%clk 0:02:09]} 17. exd5 {[%clk 0:01:43]}  O-O {[%clk 0:01:48]} 18. Kb1 {[%clk 0:01:35]}  Nxd5 {[%clk 0:01:37]} 19. Qe4 {[%clk 0:01:06]}  Rad8 {[%clk 0:01:34]} 20. Rh3 {[%clk 0:01:05]}  Nc3+ {[%clk 0:01:30]} 21. Bxc3 {[%clk 0:00:59]}  Qxd1+ {[%clk 0:01:31]} 22. Kb2 {[%clk 0:01:00]}  Qd5 {[%clk 0:01:25]} 23. Re3 {[%clk 0:00:45]}  Qxe4 {[%clk 0:01:22]} 24. Rxe4 {[%clk 0:00:31]}  Rfe8 {[%clk 0:01:18]} 25. Rb4 {[%clk 0:00:24]}  Rd7 {[%clk 0:01:17]} 26. f3 {[%clk 0:00:24]}  Rc8 {[%clk 0:01:08]} 27. Rb5 {[%clk 0:00:16]}  Rdc7 {[%clk 0:01:03]} 28. Bb4 {[%clk 0:00:10]}  e4+ {[%clk 0:00:59]} 29. Ka3 {[%clk 0:00:11]}  exf3 {[%clk 0:00:52]} 30. gxf3 {[%clk 0:00:10]}  Bf8 {[%clk 0:00:52]} 31. Bxf8 {[%clk 0:00:10]}  Rxf8 {[%clk 0:00:53]} 32. Rd5 {[%clk 0:00:08]}  Re8 {[%clk 0:00:49]} 33. Kb4 {[%clk 0:00:08]}  Kf8 {[%clk 0:00:45]} 34. a4 {[%clk 0:00:05]}  Ke7 {[%clk 0:00:44]} 35. Re5+ {[%clk 0:00:05]}  Kf8 {[%clk 0:00:43]} 36. Nh7+ {[%clk 0:00:04]}  Kg7 {[%clk 0:00:42]} 37. Rxe8 {[%clk 0:00:05]}  Kxh7 {[%clk 0:00:43]} 38. Ra8 {[%clk 0:00:04]}  b6 {[%clk 0:00:41]} 39. Kb5 {[%clk 0:00:04]}  Rc3 {[%clk 0:00:33]} 40. b4 {[%clk 0:00:04]}  Rc7 {[%clk 0:00:27]} 41. Ka6 {[%clk 0:00:04]}  g5 {[%clk 0:00:14]} 42. hxg5 {[%clk 0:00:03]}  h4 {[%clk 0:00:14]} 43. Rd8 {[%clk 0:00:03]}  Kg6 {[%clk 0:00:10]} 44. f4 {[%clk 0:00:04]}  Kf5 {[%clk 0:00:11]} 45. Rh8 {[%clk 0:00:04]}  Kg4 {[%clk 0:00:11]} 46. b5 {[%clk 0:00:03]}  h3 {[%clk 0:00:09]} 47. Rh7 {[%clk 0:00:02]}  Rc4 {[%clk 0:00:02]} 48. Kxa7 {[%clk 0:00:02]}  Rxa4+ {[%clk 0:00:03]} 49. Kxb6 {[%clk 0:00:03]}  Rxf4 {[%clk 0:00:03]} 50. Kc6 {[%clk 0:00:02]}  Kg3 {[%clk 0:00:02]} 51. b6 {[%clk 0:00:02]}  Rc4+ {[%clk 0:00:02]} 52. Kb5 {[%clk 0:00:02]}  Rc1 {[%clk 0:00:03]} 53. b7 {[%clk 0:00:03]}  Rb1+ {[%clk 0:00:02]} 54. Kc6 {[%clk 0:00:03]}  h2 {[%clk 0:00:02]} 55. Kc7 {[%clk 0:00:02]}  Kg2 {[%clk 0:00:03]} 56. Rxh2+ {[%clk 0:00:02]}  Kxh2 {[%clk 0:00:03]} 57. b8=Q {[%clk 0:00:03]}  Rxb8 {[%clk 0:00:03]} 58. Kxb8 {[%clk 0:00:04]}  Kg3 {[%clk 0:00:03]} 59. Kc7 {[%clk 0:00:04]}  Kg4 {[%clk 0:00:04]} 60. Kd6 {[%clk 0:00:04]}  Kxg5 {[%clk 0:00:04]} 61. Ke5 {[%clk 0:00:05]}  f5 {[%clk 0:00:05]} 0-1


[Site "https://www.chess.com"]

[Event "Titled Tuesday Blitz January 18 2022"]
[White "Yoo, Christopher Woojin"]
[Black "Samunenkov, Ihor"]
[WhiteFideId "30909694"]
[BlackFideId "14187086"]
[WhiteElo "2105"]
[BlackElo "2406"]
[Result "1/2-1/2"]
[Round "06"]
[TimeControl "180+1"]
[Date "2022.01.18"]
[WhiteClock "0:00:03"]
[BlackClock "0:00:04"]

1. e4 {[%clk 0:03:00]}  c6 {[%clk 0:02:58]} 2. Nf3 {[%clk 0:03:00]}  d5 {[%clk 0:02:58]} 3. d3 {[%clk 0:03:01]}  dxe4 {[%clk 0:02:57]} 4. dxe4 {[%clk 0:03:02]}  Qxd1+ {[%clk 0:02:58]} 5. Kxd1 {[%clk 0:03:02]}  Nf6 {[%clk 0:02:59]} 6. Nbd2 {[%clk 0:03:02]}  g6 {[%clk 0:02:58]} 7. Ne1 {[%clk 0:03:02]}  Bh6 {[%clk 0:02:57]} 8. f3 {[%clk 0:03:02]}  O-O {[%clk 0:02:57]} 9. Nd3 {[%clk 0:03:01]}  Rd8 {[%clk 0:02:53]} 10. Nc4 {[%clk 0:03:00]}  Bxc1 {[%clk 0:02:51]} 11. Kxc1 {[%clk 0:03:01]}  Na6 {[%clk 0:02:39]} 12. a4 {[%clk 0:02:58]}  b6 {[%clk 0:02:11]} 13. a5 {[%clk 0:02:55]}  b5 {[%clk 0:02:11]} 14. Ne3 {[%clk 0:02:33]}  Bb7 {[%clk 0:02:09]} 15. Nf4 {[%clk 0:02:00]}  e5 {[%clk 0:01:59]} 16. Nd3 {[%clk 0:01:59]}  Nd7 {[%clk 0:01:59]} 17. Ng4 {[%clk 0:01:51]}  f6 {[%clk 0:01:58]} 18. Be2 {[%clk 0:01:42]}  Kg7 {[%clk 0:01:55]} 19. b3 {[%clk 0:01:36]}  Nac5 {[%clk 0:01:53]} 20. Nb4 {[%clk 0:01:28]}  Na6 {[%clk 0:01:47]} 21. Nxa6 {[%clk 0:01:23]}  Bxa6 {[%clk 0:01:47]} 22. Rd1 {[%clk 0:01:17]}  Nc5 {[%clk 0:01:45]} 23. Kb2 {[%clk 0:01:16]}  Ne6 {[%clk 0:01:41]} 24. Ne3 {[%clk 0:01:16]}  Kf7 {[%clk 0:01:37]} 25. Bf1 {[%clk 0:01:14]}  Ke7 {[%clk 0:01:36]} 26. g3 {[%clk 0:01:13]}  Rxd1 {[%clk 0:01:18]} 27. Rxd1 {[%clk 0:01:11]}  Rd8 {[%clk 0:01:18]} 28. Rxd8 {[%clk 0:01:10]}  Kxd8 {[%clk 0:01:18]} 29. b4 {[%clk 0:01:08]}  Bc8 {[%clk 0:01:13]} 30. c3 {[%clk 0:01:06]}  Ke7 {[%clk 0:01:11]} 31. Kc2 {[%clk 0:00:57]}  Kd6 {[%clk 0:01:09]} 32. Kd2 {[%clk 0:00:57]}  Nc7 {[%clk 0:01:00]} 33. c4 {[%clk 0:00:53]}  a6 {[%clk 0:00:56]} 34. f4 {[%clk 0:00:44]}  Ne6 {[%clk 0:00:54]} 35. Bh3 {[%clk 0:00:34]}  Bd7 {[%clk 0:00:53]} 36. cxb5 {[%clk 0:00:18]}  cxb5 {[%clk 0:00:52]} 37. f5 {[%clk 0:00:08]}  Nd4 {[%clk 0:00:42]} 38. fxg6 {[%clk 0:00:07]}  hxg6 {[%clk 0:00:41]} 39. Bxd7 {[%clk 0:00:07]}  Kxd7 {[%clk 0:00:41]} 40. Nd5 {[%clk 0:00:07]}  f5 {[%clk 0:00:37]} 41. Kd3 {[%clk 0:00:08]}  Kd6 {[%clk 0:00:35]} 42. Ne3 {[%clk 0:00:04]}  Ke6 {[%clk 0:00:27]} 43. h4 {[%clk 0:00:05]}  Nc6 {[%clk 0:00:09]} 44. Nd5 {[%clk 0:00:04]}  Kd6 {[%clk 0:00:09]} 45. Ke3 {[%clk 0:00:03]}  Nd4 {[%clk 0:00:08]} 46. Kd3 {[%clk 0:00:02]}  Nc6 {[%clk 0:00:08]} 47. Ke3 {[%clk 0:00:02]}  Nd4 {[%clk 0:00:08]} 48. Nf6 {[%clk 0:00:02]}  Nc2+ {[%clk 0:00:07]} 49. Kd2 {[%clk 0:00:01]}  Nxb4 {[%clk 0:00:07]} 50. h5 {[%clk 0:00:02]}  Ke6 {[%clk 0:00:03]} 51. Nd5 {[%clk 0:00:02]}  Nc6 {[%clk 0:00:02]} 52. hxg6 {[%clk 0:00:02]}  fxe4 {[%clk 0:00:02]} 53. Nc7+ {[%clk 0:00:02]}  Kf6 {[%clk 0:00:03]} 54. Nxa6 {[%clk 0:00:03]}  Nxa5 {[%clk 0:00:03]} 55. Nc5 {[%clk 0:00:02]}  Nc4+ {[%clk 0:00:03]} 56. Ke2 {[%clk 0:00:02]}  Nd6 {[%clk 0:00:04]} 57. Nd7+ {[%clk 0:00:01]}  Kxg6 {[%clk 0:00:04]} 58. Nxe5+ {[%clk 0:00:02]}  Kf5 {[%clk 0:00:04]} 59. Nc6 {[%clk 0:00:03]}  Kg4 {[%clk 0:00:04]} 60. Ke3 {[%clk 0:00:03]}  Kxg3 {[%clk 0:00:04]} 61. Nb4 {[%clk 0:00:02]}  Kg4 {[%clk 0:00:04]} 62. Nc6 {[%clk 0:00:02]}  Kf5 {[%clk 0:00:04]} 63. Kd4 {[%clk 0:00:02]}  Kf4 {[%clk 0:00:04]} 64. Nb4 {[%clk 0:00:03]}  Kf3 {[%clk 0:00:04]} 65. Nd5 {[%clk 0:00:03]}  Nf5+ {[%clk 0:00:04]} 66. Kc5 {[%clk 0:00:04]}  Ne3 {[%clk 0:00:03]} 67. Nc3 {[%clk 0:00:04]}  Nc2 {[%clk 0:00:02]} 68. Nxe4 {[%clk 0:00:04]}  b4 {[%clk 0:00:02]} 69. Nd2+ {[%clk 0:00:04]}  Ke3 {[%clk 0:00:03]} 70. Nb3 {[%clk 0:00:03]}  Kd3 {[%clk 0:00:03]} 71. Nc1+ {[%clk 0:00:02]}  Kc3 {[%clk 0:00:04]} 72. Na2+ {[%clk 0:00:02]}  Kb2 {[%clk 0:00:04]} 73. Nxb4 {[%clk 0:00:03]} 1/2-1/2


[Site "https://www.chess.com"]

[Event "Titled Tuesday Blitz January 18 2022"]
[White "Andreikin, Dmitry"]
[Black "Klukin, Kirill"]
[WhiteFideId "4158814"]
[BlackFideId "24199273"]
[WhiteElo "2945"]
[BlackElo "2662"]
[Result "1-0"]
[Round "07"]
[TimeControl "180+1"]
[Date "2022.01.18"]
[WhiteClock "0:01:26"]
[BlackClock "0:00:01"]

1. d4 {[%clk 0:03:00]}  d5 {[%clk 0:02:57]} 2. c4 {[%clk 0:03:01]}  c6 {[%clk 0:02:57]} 3. Nf3 {[%clk 0:03:00]}  Nf6 {[%clk 0:02:57]} 4. e3 {[%clk 0:03:00]}  e6 {[%clk 0:02:57]} 5. Nbd2 {[%clk 0:03:00]}  Nbd7 {[%clk 0:02:53]} 6. Bd3 {[%clk 0:03:00]}  Bd6 {[%clk 0:02:52]} 7. O-O {[%clk 0:03:00]}  O-O {[%clk 0:02:53]} 8. e4 {[%clk 0:03:01]}  dxe4 {[%clk 0:02:35]} 9. Nxe4 {[%clk 0:03:01]}  Nxe4 {[%clk 0:02:35]} 10. Bxe4 {[%clk 0:03:01]}  Nf6 {[%clk 0:02:35]} 11. Bc2 {[%clk 0:03:00]}  c5 {[%clk 0:02:34]} 12. Bg5 {[%clk 0:02:56]}  h6 {[%clk 0:02:32]} 13. Bh4 {[%clk 0:02:50]}  cxd4 {[%clk 0:02:30]} 14. Qd3 {[%clk 0:02:38]}  Re8 {[%clk 0:02:13]} 15. Nxd4 {[%clk 0:02:36]}  g5 {[%clk 0:01:35]} 16. Bg3 {[%clk 0:02:26]}  Bxg3 {[%clk 0:01:28]} 17. fxg3 {[%clk 0:02:20]}  e5 {[%clk 0:01:28]} 18. Nb5 {[%clk 0:02:20]}  Qxd3 {[%clk 0:00:53]} 19. Bxd3 {[%clk 0:02:21]}  Rd8 {[%clk 0:00:53]} 20. Rxf6 {[%clk 0:01:58]}  Rxd3 {[%clk 0:00:53]} 21. Raf1 {[%clk 0:01:57]}  Bg4 {[%clk 0:00:15]} 22. h3 {[%clk 0:01:53]}  Bh5 {[%clk 0:00:14]} 23. Nd6 {[%clk 0:01:49]}  Rf8 {[%clk 0:00:09]} 24. Nf5 {[%clk 0:01:44]}  Rfd8 {[%clk 0:00:05]} 25. Nxh6+ {[%clk 0:01:41]}  Kg7 {[%clk 0:00:05]} 26. Nxf7 {[%clk 0:01:35]}  Rf8 {[%clk 0:00:05]} 27. Nxe5 {[%clk 0:01:35]}  Rxf6 {[%clk 0:00:05]} 28. Nxd3 {[%clk 0:01:33]}  Rd6 {[%clk 0:00:04]} 29. Ne5 {[%clk 0:01:30]}  Re6 {[%clk 0:00:03]} 30. Rf5 {[%clk 0:01:28]}  b6 {[%clk 0:00:01]} 31. Rxg5+ {[%clk 0:01:26]} 1-0


[Site "https://www.chess.com"]

[Event "Titled Tuesday Blitz January 18 2022"]
[White "Aradhya, Garg"]
[Black "Yoo, Christopher Woojin"]
[WhiteFideId "25006746"]
[BlackFideId "30909694"]
[WhiteElo "2653"]
[BlackElo "2914"]
[Result "0-1"]
[Round "07"]
[TimeControl "180+1"]
[Date "2022.01.18"]
[WhiteClock "0:00:04"]
[BlackClock "0:00:33"]

1. d4 {[%clk 0:01:29]}  Nf6 {[%clk 0:02:51]} 2. c4 {[%clk 0:01:29]}  e6 {[%clk 0:02:51]} 3. Nf3 {[%clk 0:01:30]}  d5 {[%clk 0:02:52]} 4. Nc3 {[%clk 0:01:30]}  c5 {[%clk 0:02:52]} 5. cxd5 {[%clk 0:01:30]}  Nxd5 {[%clk 0:02:53]} 6. e4 {[%clk 0:01:30]}  Nxc3 {[%clk 0:02:53]} 7. bxc3 {[%clk 0:01:31]}  cxd4 {[%clk 0:02:54]} 8. cxd4 {[%clk 0:01:32]}  Bb4+ {[%clk 0:02:54]} 9. Bd2 {[%clk 0:01:32]}  Bxd2+ {[%clk 0:02:55]} 10. Qxd2 {[%clk 0:01:33]}  O-O {[%clk 0:02:55]} 11. Bd3 {[%clk 0:01:33]}  Nd7 {[%clk 0:02:56]} 12. O-O {[%clk 0:01:32]}  b6 {[%clk 0:02:56]} 13. a4 {[%clk 0:01:31]}  Bb7 {[%clk 0:02:55]} 14. a5 {[%clk 0:01:31]}  Nf6 {[%clk 0:02:53]} 15. Rfe1 {[%clk 0:01:31]}  Rc8 {[%clk 0:02:46]} 16. axb6 {[%clk 0:01:30]}  axb6 {[%clk 0:02:45]} 17. Qb4 {[%clk 0:01:25]}  Qc7 {[%clk 0:02:38]} 18. Rab1 {[%clk 0:01:18]}  Qf4 {[%clk 0:02:33]} 19. Qd2 {[%clk 0:00:57]}  Qxd2 {[%clk 0:02:27]} 20. Nxd2 {[%clk 0:00:58]}  Rfd8 {[%clk 0:02:27]} 21. Rxb6 {[%clk 0:00:49]}  Rxd4 {[%clk 0:02:25]} 22. Rxb7 {[%clk 0:00:49]}  Rxd3 {[%clk 0:02:24]} 23. Nf3 {[%clk 0:00:48]}  h6 {[%clk 0:02:02]} 24. Ne5 {[%clk 0:00:48]}  Rd4 {[%clk 0:02:00]} 25. f3 {[%clk 0:00:44]}  Rd2 {[%clk 0:01:55]} 26. Kh1 {[%clk 0:00:42]}  Rcd8 {[%clk 0:01:44]} 27. Nxf7 {[%clk 0:00:34]}  Rd1 {[%clk 0:01:41]} 28. Rg1 {[%clk 0:00:34]}  Rxg1+ {[%clk 0:00:55]} 29. Kxg1 {[%clk 0:00:35]}  Rd1+ {[%clk 0:00:56]} 30. Kf2 {[%clk 0:00:34]}  Rd2+ {[%clk 0:00:57]} 31. Kf1 {[%clk 0:00:34]}  Nh5 {[%clk 0:00:56]} 32. Ne5 {[%clk 0:00:22]}  Nf4 {[%clk 0:00:57]} 33. Rb6 {[%clk 0:00:20]}  Nxg2 {[%clk 0:00:41]} 34. Rxe6 {[%clk 0:00:19]}  Ne3+ {[%clk 0:00:41]} 35. Ke1 {[%clk 0:00:19]}  Rxh2 {[%clk 0:00:40]} 36. Ng4 {[%clk 0:00:15]}  Nxg4 {[%clk 0:00:37]} 37. fxg4 {[%clk 0:00:16]}  Rg2 {[%clk 0:00:38]} 38. Kf1 {[%clk 0:00:14]}  Rxg4 {[%clk 0:00:37]} 39. Kf2 {[%clk 0:00:14]}  h5 {[%clk 0:00:38]} 40. Kf3 {[%clk 0:00:14]}  Kf7 {[%clk 0:00:36]} 41. Re5 {[%clk 0:00:14]}  g5 {[%clk 0:00:37]} 42. Ra5 {[%clk 0:00:12]}  Rf4+ {[%clk 0:00:36]} 43. Kg3 {[%clk 0:00:11]}  h4+ {[%clk 0:00:37]} 44. Kh3 {[%clk 0:00:12]}  Kg6 {[%clk 0:00:37]} 45. Re5 {[%clk 0:00:11]}  Kh5 {[%clk 0:00:36]} 46. Re8 {[%clk 0:00:11]}  g4+ {[%clk 0:00:36]} 47. Kg2 {[%clk 0:00:12]}  h3+ {[%clk 0:00:36]} 48. Kh2 {[%clk 0:00:11]}  Rf2+ {[%clk 0:00:36]} 49. Kg1 {[%clk 0:00:11]}  g3 {[%clk 0:00:33]} 50. Rh8+ {[%clk 0:00:09]}  Kg4 {[%clk 0:00:33]} 51. Rg8+ {[%clk 0:00:09]}  Kf3 {[%clk 0:00:33]} 52. Rf8+ {[%clk 0:00:05]}  Ke2 {[%clk 0:00:34]} 53. Rh8 {[%clk 0:00:04]}  Rf1# {[%clk 0:00:33]} 0-1


[Site "https://www.chess.com"]